fUSD/lending_fUSD_20250125
["ID","MTS","AMOUNT","RATE_DAILY","PERIOD"]
[350288548,1737769854225,-588.51,0.00019315,2]
[350288549,1737769854234,-944.84,0.00019315,2]
[350288550,1737769854244,-511.38,0.00019315,2]
[350288551,1737769854253,-956.78,0.00019315,2]
[350288552,1737769854263,-778.13,0.00019355,2]
[350288553,1737769854272,-1000.0,0.00019384,2]
[350288554,1737769854282,-200.0,0.00019394,2]
[350288555,1737769854292,-10321.24173911,0.00019428,2]
[350288556,1737769854302,-726.04,0.00019451,2]
[350288557,1737769854312,-786.33,0.00019451,2]
[350288558,1737769854321,-1141.35,0.00019451,2]
[350288559,1737769854330,-757.05,0.00019451,2]
[350288560,1737769854340,-1435.72,0.00019451,2]
[350288561,1737769854350,-632.77,0.00019451,2]
[350288562,1737769854360,-558.5,0.00019451,2]
[350288563,1737769854369,-729.14,0.00019451,2]
[350288564,1737769854379,-647.26,0.00019451,2]
[350288565,1737769854389,-714.31,0.00019451,2]
[350288566,1737769854399,-696.03,0.00019451,2]
[350288567,1737769854408,-519.2,0.00019452,2]
[350288568,1737769854418,-863.29,0.00019452,2]
[350288569,1737769854427,-1033.74,0.00019452,2]
[350288570,1737769854437,-694.04,0.00019452,2]
[350288571,1737769854446,-1210.79,0.00019452,2]
[350288572,1737769854456,-1419.56,0.00019452,2]
[350288573,1737769854465,-1263.23,0.00019452,2]
[350288574,1737769854475,-712.33,0.00019452,2]
[350288575,1737769854485,-649.85,0.00019452,2]
[350288576,1737769854495,-588.51,0.00019452,2]
[350288577,1737769854610,-944.84,0.00019452,2]
[350288578,1737769854620,-511.38,0.00019452,2]
[350288579,1737769854630,-956.78,0.00019452,2]
[350288580,1737769854640,-21501.5690989,0.00019489,2]
[350288581,1737769854649,-726.04,0.00019588,2]
[350288582,1737769854659,-786.33,0.00019588,2]
[350288583,1737769854668,-1141.35,0.00019588,2]
[350288584,1737769854677,-757.05,0.00019588,2]
[350288585,1737769854688,-1435.72,0.00019588,2]
[350288586,1737769854698,-632.77,0.00019588,2]
[350288587,1737769854708,-558.5,0.00019588,2]
[350288588,1737769854718,-729.14,0.00019588,2]
[350288589,1737769854727,-647.26,0.00019588,2]
[350288590,1737769854737,-714.31,0.00019588,2]
[350288591,1737769854747,-696.03,0.00019588,2]
[350288592,1737769854755,-519.34420091,0.00019589,2]
[350288593,1737769854765,-863.33718188,0.00019589,2]
[350288594,1737769854775,-1033.88422505,0.00019589,2]
[350288595,1737769854784,-694.06671766,0.00019589,2]
[350288596,1737769854794,-1210.92774338,0.00019589,2]
[350288597,1737769854804,-1419.76924517,0.00019589,2]
[350288598,1737769854813,-1263.32273013,0.00019589,2]
[350288599,1737769854823,-712.55191651,0.00019589,2]
[350288600,1737769854832,-649.95967918,0.00019589,2]
[350288601,1737769854841,-588.53963375,0.00019589,2]
[350288602,1737769854851,-945.06091225,0.00019589,2]
[350288603,1737769854860,-511.49525414,0.00019589,2]
[350288604,1737769854869,-956.93300249,0.00019589,2]
[350288605,1737769854877,-455.63,0.000197,2]
[350288606,1737769854887,-726.04,0.00019725,2]
[350288607,1737769854895,-786.33,0.00019725,2]
[350288608,1737769854903,-1141.35,0.00019725,2]
[350288609,1737769854912,-757.05,0.00019725,2]
[350288610,1737769854923,-1435.72,0.00019725,2]
[350288611,1737769854935,-632.77,0.00019725,2]
[350288612,1737769854945,-558.5,0.00019725,2]
[350288613,1737769854955,-729.14,0.00019725,2]
[350288614,1737769854964,-647.26,0.00019725,2]
[350288615,1737769854976,-714.31,0.00019725,2]
[350288616,1737769854986,-696.03,0.00019725,2]
[350288617,1737769854995,-260.77462647,0.00019744,2]
[350288618,1737769855005,-675.05681481,0.00019762,2]
[350288619,1737769855014,-726.21903537,0.00019862,2]
[350288620,1737769855023,-786.33165048,0.00019862,2]
[350288621,1737769855032,-1141.40500566,0.00019862,2]
[350288622,1737769855041,-757.23893679,0.00019862,2]
[350288623,1737769855050,-1435.89046441,0.00019862,2]
[350288624,1737769855058,-632.94359677,0.00019862,2]
[350288625,1737769855066,-558.71863308,0.00019862,2]
[350288626,1737769855074,-729.21554696,0.00019862,2]
[350288627,1737769855081,-647.36192918,0.00019862,2]
[350288628,1737769855089,-714.32457831,0.00019862,2]
[350288629,1737769855098,-696.13062183,0.00019862,2]
[350288630,1737769855108,-2110.0,0.00020005,2]
[350288631,1737769855118,-10321.24173911,0.00020046,2]
[350288632,1737769855127,-21501.5690989,0.00020092,2]
[350288633,1737769855137,-578.02,0.00020141,2]
[350288634,1737769855146,-444.03128024,0.00020215,2]
[350288635,1737769855155,-260.77462647,0.00020283,2]
[350288636,1737769855165,-1274.81,0.00020314,2]
[350288637,1737769855174,-569.255,0.00020314,2]
[350288638,1737769855183,-637.0,0.00020314,2]
[350288639,1737769855193,-1871.454,0.00020314,2]
[350288640,1737769855202,-911.946,0.00020314,2]
[350288641,1737769855214,-862.0,0.00020314,2]
[350288642,1737769855223,-1266.343,0.00020314,2]
[350288643,1737769855232,-2949.0,0.00020314,2]
[350288644,1737769855241,-539.936,0.00020314,2]
[350288645,1737769855250,-4002.832,0.00020314,2]
[350288646,1737769855259,-150.0,0.00020314,2]
[350288647,1737769855267,-500.0,0.00020356,2]
[350288648,1737769855277,-2110.0,0.00020505,2]
[350288649,1737769855285,-20449.32,0.00020548,2]
[350288650,1737769855294,-177.58,0.00020548,2]
[350288651,1737769855303,-10321.24173911,0.00020664,2]
[350288652,1737769855312,-21501.5690989,0.00020694,2]
[350288653,1737769855321,-260.77462647,0.00020822,2]
[350288654,1737769855330,-2110.0,0.00021005,2]
[350288655,1737769855338,-3204.28010221,0.00021067,2]
[350288656,1737769855347,-3204.28010216,0.00021067,2]
[350288657,1737769855356,-1000.0,0.00021146,2]
[350288658,1737769855364,-10321.24173911,0.00021282,2]
[350288659,1737769855373,-778.13,0.0002129,2]
[350288660,1737769855383,-21501.5690989,0.00021297,2]
[350288661,1737769855394,-2186.0,0.0002134,2]
[350288662,1737769855403,-244.47235886,0.00021349,2]
[350288663,1737769855414,-260.77462647,0.00021361,2]
[350288664,1737769855425,-678.27,0.00021441,2]
[350288665,1737769855435,-244.47235882,0.00021487,2]
[350288666,1737769855453,-90060.96853796,0.000215,3]
[350288667,1737769855468,-341598.2063836,0.000215,2]
[350288668,1737769855477,-560.0,0.000215,2]
[350288669,1737769855487,-2110.0,0.00021505,2]
[350288670,1737769855498,-2186.0,0.0002156,2]
[350288671,1737769855508,-1084.98555774,0.00021564,2]
[350288672,1737769855519,-1103.95741468,0.00021564,2]
[350288673,1737769855531,-998.35853279,0.00021564,2]
[350288674,1737769855542,-9586.01400184,0.00021621,2]
[350288675,1737769855552,-244.47235882,0.00021625,2]
[350288676,1737769855563,-162.03,0.00021666,2]
[350288677,1737769855572,-800.33340782,0.0002167,2]
[350288678,1737769855582,-244.47235882,0.00021762,2]
[350288679,1737769855591,-2186.0,0.0002178,2]
[350288680,1737769855601,-1212.65024,0.0002178,2]
[350288681,1737769855610,-150.0,0.00021792,2]
[350288682,1737769855621,-150.0,0.00021807,2]
[350288683,1737769855630,-150.0,0.00021839,2]
[350288684,1737769855640,-1000.0,0.00021889,2]
[350288685,1737769855650,-2000.0,0.0002189,2]
[350288686,1737769855659,-2000.0,0.0002189,2]
[350288687,1737769855668,-166.1455,0.000219,2]
[350288688,1737769855677,-150.0,0.000219,9]
[350288689,1737769855687,-3348.2113896,0.000219,2]
[350288690,1737769855697,-244.47235882,0.000219,2]
[350288691,1737769855708,-260.77462647,0.000219,2]
[350288692,1737769855718,-21501.5690989,0.000219,2]
[350288693,1737769855727,-444.03128024,0.000219,2]
[350288694,1737769855737,-307.37621842,0.000219,4]
[350288695,1737769855747,-14704.98506665,0.000219,2]
[350288696,1737769855756,-2842.68344776,0.000219,2]
[350288697,1737769855766,-10321.24173911,0.000219,2]
[350288698,1737769855775,-4927.15001596,0.000219,2]
[350288699,1737769855787,-304.8707457,0.000219,2]
[350288700,1737769855800,-1213.0,0.000219,2]
[350288701,1737769855815,-174.16269916,0.00021907,2]
[350288702,1737769855828,-519.56630551,0.00021917,7]
[350288703,1737769855840,-500.0,0.00021917,2]
[350288704,1737769855853,-509.41647202,0.00021917,2]
[350288705,1737769855867,-2000.0,0.00021917,30]
[350288706,1737769855879,-2000.0,0.00021917,30]
[350288707,1737769855894,-2000.0,0.00021917,30]
[350288708,1737769855907,-2000.0,0.00021917,30]
[350288709,1737769855921,-2000.0,0.00021917,30]
[350288710,1737769855938,-2000.0,0.00021917,30]
[350288711,1737769855949,-1847.26573208,0.00021917,30]
[350288712,1737769855961,-500.0,0.00021917,2]
[350288713,1737769855975,-500.0,0.00021917,2]
[350288714,1737769855988,-500.0,0.00021917,2]
[350288715,1737769856004,-500.0,0.00021917,2]
[350288716,1737769856016,-500.0,0.00021917,2]
[350288717,1737769856030,-500.0,0.00021917,2]
[350288718,1737769856043,-508.52595161,0.00021917,2]
[350288719,1737769856056,-500.0,0.00021917,3]
[350288720,1737769856072,-500.0,0.00021917,3]
[350288721,1737769856086,-510.35362135,0.00021917,3]
[350288722,1737769856099,-150.0,0.00021918,2]
[350288723,1737769856111,-150.0,0.00021973,4]
[350288724,1737769856123,-150.0,0.00021973,4]
[350288725,1737769856135,-150.0,0.00021973,4]
[350288726,1737769856148,-150.0,0.00021973,4]
[350288727,1737769856162,-150.0,0.00021973,4]
[350288728,1737769856174,-150.0,0.00021974,4]
[350288729,1737769856186,-150.0,0.00021974,4]
[350288730,1737769856196,-150.0,0.00021975,4]
[350288731,1737769856209,-150.0,0.00021976,4]
[350288732,1737769856220,-150.0,0.00021976,4]
[350288733,1737769856234,-150.0,0.00021976,4]
[350288734,1737769856250,-150.0,0.00021977,2]
[350288735,1737769856265,-150.0,0.00021977,4]
[350288736,1737769856275,-150.0,0.00021978,4]
[350288737,1737769856286,-150.0,0.00021978,4]
[350288738,1737769856298,-150.0,0.00021979,4]
[350288739,1737769856311,-150.0,0.00021979,4]
[350288740,1737769856324,-150.0,0.00021979,4]
[350288741,1737769856335,-150.0,0.0002198,4]
[350288742,1737769856346,-150.0,0.00021981,4]
[350288743,1737769856357,-1018.8361527,0.00021981,2]
[350288744,1737769856368,-150.0,0.00021981,4]
[350288745,1737769856380,-150.0,0.00021981,4]
[350288746,1737769856392,-150.0,0.00021982,4]
[350288747,1737769856403,-150.0,0.00021983,4]
[350288748,1737769856415,-150.0,0.00021983,4]
[350288749,1737769856426,-150.0,0.00021983,4]
[350288750,1737769856437,-150.0,0.00021984,4]
[350288751,1737769856448,-150.0,0.00021985,4]
[350288752,1737769856460,-150.0,0.00021985,4]
[350288753,1737769856472,-150.0,0.00021986,4]
[350288754,1737769856483,-150.0,0.00021986,4]
[350288755,1737769856495,-150.0,0.00021988,4]
[350288756,1737769856507,-150.0,0.0002199,4]
[350288757,1737769856518,-150.0,0.0002199,4]
[350288758,1737769856529,-2176.21317937,0.0002199,2]
[350288759,1737769856541,-2176.21317937,0.0002199,2]
[350288760,1737769856553,-150.0,0.00021991,4]
[350288761,1737769856564,-150.0,0.00021993,4]
[350288762,1737769856575,-150.0,0.00021993,4]
[350288763,1737769856586,-150.0,0.00021995,4]
[350288764,1737769856598,-150.0,0.00021997,4]
[350288765,1737769856609,-150.0,0.00021997,4]
[350288766,1737769856621,-999.0,0.00021997,2]
[350288767,1737769856632,-501.97712995,0.00021998,2]
[350288768,1737769856644,-502.26027206,0.00021998,2]
[350288769,1737769856655,-301.70050738,0.00021998,2]
[350288770,1737769856666,-150.0,0.00021998,4]
[350288771,1737769856677,-2000.0,0.00021999,2]
[350288772,1737769856689,-2000.0,0.00021999,2]
[350288773,1737769856699,-2000.0,0.00021999,2]
[350288774,1737769856711,-2000.0,0.00021999,2]
[350288775,1737769856722,-2000.0,0.00021999,2]
[350288776,1737769856733,-2000.0,0.00021999,2]
[350288777,1737769856744,-2000.0,0.00021999,2]
[350288778,1737769856756,-55027.8,0.00021999,2]
[350288779,1737769856767,-366.28502129,0.00021999,7]
[350288780,1737769856779,-2000.0,0.00021999,2]
[350288781,1737769856790,-2000.0,0.00021999,2]
[350288782,1737769856802,-500.0,0.00021999,2]
[350288783,1737769856813,-127470.42563522,0.00022,2]
[350288784,1737769856824,-10028.09239476,0.00022,2]
[350288785,1737769856835,-2773910.20708737,0.00022,2]
[350288786,1737769856847,-2859945.79003704,0.00022,2]
[350288787,1737769856858,-1000.0,0.00022,2]
[350288788,1737769856869,-2421267.96513109,0.00022,2]
[350288789,1737769856881,-3680847.77335432,0.00022,2]
[350288790,1737769856892,-1309243.54492175,0.00022,2]
[350288791,1737769856903,-475037.04795427,0.00022,2]
[350288792,1737769856915,-5000.0,0.00022,5]
[350288793,1737769856929,-937.94,0.00022,2]
[350288794,1737769856942,-52762.46004431,0.00022,2]
[350288795,1737769856953,-211.0,0.00022,2]
[350288796,1737769856969,-235.0,0.00022,2]
[350288797,1737769856982,-206.0,0.00022,2]
[350288798,1737769856995,-235.0,0.00022,2]
[350288799,1737769857010,-500.23517495,0.00022,2]
[350288800,1737769857023,-235.0,0.00022,2]
[350288801,1737769857036,-58131.8692676,0.00022,2]
[350288802,1737769857049,-8758.26441259,0.00022,2]
[350288803,1737769857063,-23834.27285262,0.00022,5]
[350288804,1737769857078,-10894320.51492814,0.00022,2]
[350288805,1737769857380,-20780.54390345,0.00022,2]
[350288806,1737769857393,-14514.10114541,0.00022,2]
[350288807,1737769857405,-62784.51041724,0.00022,2]
[350288808,1737769857418,-791.10277866,0.00022,2]
[350288809,1737769857434,-810.83,0.0001863,2]
[350288810,1737769857443,-29312.52656127,0.00022,2]
[350288811,1737769857458,-1462.95175494,0.00022,2]
[350288812,1737769857469,-2447.08164934,0.00022,2]
[350288813,1737769857557,-4269.66862683,0.00022,2]
[350288814,1737769857636,-663.54000003,0.00018767,2]
[350288815,1737769857647,-147.28999997,0.00018767,2]
[350288816,1737769857656,-386.78068825,0.00018904,2]
[350288817,1737769857699,-424.04931175,0.00018904,2]
[350288818,1737769857710,-810.83,0.00019041,2]
[350288819,1737769857718,-810.83,0.00019178,2]
[350288820,1737769857727,-810.83,0.00019315,2]
[350288821,1737769857735,-810.83,0.00019452,2]
[350288822,1737769857744,-810.85101157,0.00019589,2]
[350288823,1737769857754,-14204.59172877,0.00022,2]
[350288824,1737769857775,-3005.48119769,0.00022,2]
[350288825,1737769857787,-650.39699997,0.00022,2]
[350288826,1737769857798,-269.1807799,0.00022,2]
[350288827,1737769857810,-650.341599,0.00022,2]
[350288828,1737769857822,-7260.927576,0.00022,2]
[350288829,1737769857975,-42771.22612271,0.00022,2]
[350288830,1737769858498,-47.27179977,0.00022,2]
[350288831,1737769858629,-660.34663861,0.00022,2]
[350288832,1737769858736,-500.0,0.00016375,2]
[350288833,1737769858750,-350.40658192,0.00022,2]
[350288834,1737769858762,-1869.0786796,0.00022,2]
[350288835,1737769858773,-398.4010004,0.00022,2]
[350288836,1737769858784,-389.67501716,0.00022,2]
[350288837,1737769858821,-20340.6,0.00022,2]
[350288838,1737769858940,-9828.72545005,0.00022,2]
[350288862,1737770833101,-158.4,0.00010137,2]
[350288863,1737770833122,-35.39919898,0.0001355,2]
[350288866,1737770945278,-214.60080102,0.0001355,2]
[350288867,1737770945300,-550.0,0.00015,2]
[350288868,1737770945324,-1269.79930519,0.00016437,2]
[350288869,1737770951098,-878.043022,0.00016437,2]
[350288870,1737770962086,-9892.83694224,0.00016437,2]
[350288871,1737770962107,-550.0,0.00016437,2]
[350288872,1737770962127,-534.47226412,0.00016438,2]
[350288873,1737770962147,-500.0,0.00016438,2]
[350288874,1737770962167,-500.0,0.00016438,2]
[350288875,1737770962188,-500.0,0.00016438,2]
[350288876,1737770962208,-505.93863171,0.00016438,2]
[350288877,1737770962227,-505.97851927,0.00016438,2]
[350288878,1737770962247,-504.11192682,0.00016438,2]
[350288879,1737770962267,-190.5248642,0.00016438,2]
[350288880,1737770962286,-511.22423621,0.00016438,2]
[350288881,1737770962310,-508.99537261,0.00016438,2]
[350288882,1737770962329,-505.1667634,0.00016438,2]
[350288883,1737770962351,-605.98414166,0.00016438,2]
[350288884,1737770962370,-500.0,0.00016438,2]
[350288885,1737770962392,-530.37308262,0.00016438,2]
[350288886,1737770962414,-500.0,0.00016438,2]
[350288887,1737770962434,-500.0,0.00016438,2]
[350288888,1737770962454,-512.86303271,0.00016438,2]
[350288889,1737770962474,-512.22699513,0.00016438,2]
[350288890,1737770962494,-500.0,0.00016438,2]
[350288891,1737770962513,-506.15917959,0.00016438,2]
[350288892,1737770962534,-500.0,0.00016438,2]
[350288893,1737770962553,-504.6810051,0.00016438,2]
[350288894,1737770962573,-503.05358035,0.00016438,2]
[350288895,1737770962594,-505.73313862,0.00016438,2]
[350288896,1737770962614,-500.0,0.00016438,2]
[350288897,1737770962634,-507.08339668,0.00016438,2]
[350288898,1737770962654,-505.29242192,0.00016438,2]
[350288899,1737770962673,-504.26106128,0.00016438,2]
[350288900,1737770962698,-500.0,0.00016438,2]
[350288901,1737770962718,-500.0,0.00016438,2]
[350288902,1737770962738,-500.0,0.00016438,2]
[350288903,1737770962760,-500.0,0.00016438,2]
[350288904,1737770962781,-514.62463908,0.00016438,2]
[350288905,1737770962801,-500.0,0.00016438,2]
[350288906,1737770962822,-500.0,0.00016438,2]
[350288907,1737770962844,-500.0,0.00016438,2]
[350288908,1737770962866,-507.75232772,0.00016438,2]
[350288909,1737770962888,-640.19,0.00016438,2]
[350288910,1737770962909,-510.5770386,0.00016438,2]
[350288911,1737770962929,-508.400902,0.00016438,2]
[350288912,1737770962949,-500.0,0.00016438,2]
[350288913,1737770962971,-521.11555198,0.00016438,2]
[350288914,1737770962992,-500.0,0.00016438,2]
[350288915,1737770963012,-509.03474887,0.00016438,2]
[350288916,1737770963031,-505.86069911,0.00016438,2]
[350288917,1737770963051,-506.28586868,0.00016438,2]
[350288918,1737770963072,-514.94509747,0.00016438,2]
[350288919,1737770963092,-506.26200769,0.00016438,2]
[350288920,1737770963112,-500.0,0.00016438,2]
[350288921,1737770963132,-150.56362697,0.00016438,2]
[350288922,1737770963154,-516.75931884,0.00016438,2]
[350288923,1737770963175,-500.0,0.00016438,2]
[350288924,1737770963199,-517.79778541,0.00016438,2]
[350288925,1737770963221,-506.98692415,0.00016438,2]
[350288926,1737770963241,-505.88157477,0.00016438,2]
[350288927,1737770963265,-517.58538464,0.00016438,2]
[350288928,1737770963286,-507.13848316,0.00016438,2]
[350288929,1737770963310,-500.0,0.00016438,2]
[350288930,1737770963330,-510.30409473,0.00016438,2]
[350288931,1737770963351,-511.54535988,0.00016438,2]
[350288932,1737770963371,-520.50013592,0.00016438,2]
[350288933,1737770963392,-500.0,0.00016438,2]
[350288934,1737770963412,-503.97537136,0.00016438,2]
[350288935,1737770963432,-506.20144382,0.00016438,2]
[350288936,1737770963453,-500.0,0.00016438,2]
[350288937,1737770963473,-532.36977603,0.00016438,2]
[350288938,1737770963494,-509.9513943,0.00016438,2]
[350288939,1737770963514,-507.41602937,0.00016438,2]
[350288940,1737770963536,-501.99822216,0.00016438,2]
[350288941,1737770963557,-500.0,0.00016438,2]
[350288942,1737770963580,-500.0,0.00016438,2]
[350288943,1737770963600,-507.76234162,0.00016438,2]
[350288944,1737770963620,-500.0,0.00016438,2]
[350288945,1737770963640,-505.88887589,0.00016438,2]
[350288946,1737770963661,-500.0,0.00016438,2]
[350288947,1737770963681,-504.29490066,0.00016438,2]
[350288948,1737770963701,-500.0,0.00016438,2]
[350288949,1737770963722,-500.0,0.00016438,2]
[350288950,1737770963742,-515.69967816,0.00016438,2]
[350288951,1737770963762,-503.46220086,0.00016438,2]
[350288952,1737770963781,-500.0,0.00016438,2]
[350288953,1737770963800,-449.10557995,0.00016438,2]
[350288954,1737770963821,-500.0,0.00016438,2]
[350288955,1737770963841,-500.0,0.00016438,2]
[350288956,1737770963861,-500.0,0.00016438,2]
[350288957,1737770963882,-500.0,0.00016438,2]
[350288958,1737770963902,-500.0,0.00016438,2]
[350288959,1737770963923,-500.0,0.00016438,2]
[350288960,1737770963943,-500.0,0.00016438,2]
[350288961,1737770963981,-500.0,0.00016438,2]
[350288962,1737770964003,-500.0,0.00016438,2]
[350288963,1737770964025,-506.36942277,0.00016438,2]
[350288964,1737770964046,-500.0,0.00016438,2]
[350288965,1737770964068,-543.33122245,0.00016438,2]
[350288966,1737770964089,-507.59297948,0.00016438,2]
[350288967,1737770964112,-500.0,0.00016438,2]
[350288968,1737770964136,-500.0,0.00016438,2]
[350288969,1737770964159,-500.0,0.00016438,2]
[350288970,1737770964186,-500.0,0.00016438,2]
[350288971,1737770964208,-568.46,0.00016438,2]
[350288972,1737770964229,-512.94602838,0.00016438,2]
[350288973,1737770964253,-500.0,0.00016438,2]
[350288974,1737770964274,-500.0,0.00016438,2]
[350288975,1737770964295,-517.19702922,0.00016438,2]
[350288976,1737770964320,-630.00789582,0.00016438,2]
[350288977,1737770964340,-514.23193861,0.00016438,2]
[350288978,1737770964363,-500.0,0.00016438,2]
[350288979,1737770964386,-500.0,0.00016438,2]
[350288980,1737770964407,-511.04093014,0.00016438,2]
[350288981,1737770964428,-509.69729503,0.00016438,2]
[350288982,1737770964450,-510.45775849,0.00016438,2]
[350288983,1737770964473,-500.0,0.00016438,2]
[350288984,1737770964495,-500.0,0.00016438,2]
[350288985,1737770964516,-500.0,0.00016438,2]
[350288986,1737770964540,-500.0,0.00016438,2]
[350288987,1737770964565,-500.0,0.00016438,2]
[350288988,1737770964587,-507.76503554,0.00016438,2]
[350288989,1737770964608,-510.05438912,0.00016438,2]
[350288990,1737770964631,-500.0,0.00016438,2]
[350288991,1737770964653,-509.58622692,0.00016438,2]
[350288992,1737770964674,-511.91627427,0.00016438,2]
[350288993,1737770964694,-511.99421803,0.00016438,2]
[350288994,1737770964715,-500.0,0.00016438,2]
[350288995,1737770964736,-500.0,0.00016438,2]
[350288996,1737770964757,-519.88514979,0.00016438,2]
[350288997,1737770964778,-503.48967116,0.00016438,2]
[350288998,1737770964798,-502.2660138,0.00016438,2]
[350288999,1737770964820,-500.0,0.00016438,2]
[350289000,1737770964841,-500.0,0.00016438,2]
[350289001,1737770964862,-631.59,0.00016438,2]
[350289002,1737770964882,-492.99,0.00016438,2]
[350289003,1737770964903,-500.0,0.00016438,2]
[350289004,1737770964929,-500.0,0.00016438,2]
[350289005,1737770964949,-500.0,0.00016438,2]
[350289006,1737770964972,-500.0,0.00016438,2]
[350289007,1737770964993,-500.0,0.00016438,2]
[350289008,1737770965014,-386.01,0.00016438,2]
[350289009,1737770965034,-404.29773335,0.00016438,2]
[350289016,1737771032269,-300.0,0.00016437,2]
[350289017,1737771032279,-107.44911125,0.00016438,2]
[350289018,1737771032289,-500.0,0.00016438,2]
[350289019,1737771032299,-500.0,0.00016438,2]
[350289020,1737771032308,-500.0,0.00016438,2]
[350289021,1737771032319,-916.01770496,0.00016438,2]
[350289022,1737771032332,-250.22877249,0.00016438,2]
[350289023,1737771032472,-1049.05504559,0.00016438,2]
[350289024,1737771032544,-30525.89909997,0.00016438,2]
[350289025,1737771032556,-36462.70952567,0.00016438,2]
[350289026,1737771032566,-3457.18840685,0.00016475,2]
[350289027,1737771032576,-510.08722868,0.00016575,2]
[350289028,1737771032585,-516.81584371,0.00016575,2]
[350289029,1737771032595,-519.82823557,0.00016575,2]
[350289030,1737771032604,-542.97401597,0.00016575,2]
[350289031,1737771032613,-511.36923269,0.00016575,2]
[350289032,1737771032625,-506.22542505,0.00016575,2]
[350289033,1737771032634,-500.0,0.00016575,2]
[350289034,1737771032643,-356.13,0.00016575,2]
[350289035,1737771032652,-581.56,0.00016692,2]
[350289036,1737771032661,-607.99,0.00016798,2]
[350289037,1737771032671,-600.0,0.00017,2]
[350289038,1737771032680,-3457.18840678,0.00017078,2]
[350289039,1737771032689,-188.0,0.000174,5]
[350289040,1737771032698,-444.0,0.00017555,2]
[350289041,1737771032707,-3457.18840678,0.00017681,2]
[350289042,1737771032717,-225.12870149,0.000179,2]
[350289043,1737771032727,-225.12870146,0.00018038,2]
[350289044,1737771032736,-1255.687,0.00018097,2]
[350289045,1737771032745,-500.0,0.00018164,2]
[350289046,1737771032755,-524.76507289,0.00018164,2]
[350289047,1737771032765,-225.12870146,0.00018176,2]
[350289048,1737771032775,-3457.18840678,0.00018283,2]
[350289049,1737771032784,-225.12870146,0.00018314,2]
[350289050,1737771032793,-225.12870146,0.00018452,2]
[350289051,1737771032802,-225.12870146,0.0001859,2]
[350289052,1737771032812,-160.98,0.0001869,2]
[350289054,1737771032821,-162.04,0.000187,2]
[350289056,1737771032830,-693.89,0.00018705,2]
[350289058,1737771032840,-225.12870146,0.00018728,2]
[350289060,1737771032849,-23900.0,0.00018739,2]
[350289062,1737771032859,-729.11026486,0.00018788,2]
[350289064,1737771032868,-1000.0,0.00018829,2]
[350289066,1737771032877,-225.12870146,0.00018866,2]
[350289067,1737771032886,-3457.18840678,0.00018886,2]
[350289069,1737771032895,-500.0,0.00018986,2]
[350289071,1737771032905,-225.12870146,0.00019003,2]
[350289073,1737771032915,-607.99,0.00019062,2]
[350289075,1737771032924,-225.12870146,0.00019141,2]
[350289077,1737771032933,-164.63,0.00019175,30]
[350289079,1737771032943,-158.4,0.00019198,2]
[350289081,1737771032952,-225.12870146,0.00019279,2]
[350289083,1737771032961,-223.7037544,0.00019369,2]
[350289085,1737771032970,-223.7037544,0.00019374,2]
[350289087,1737771032980,-223.7037544,0.00019375,2]
[350289089,1737771032989,-223.7037544,0.00019392,2]
[350289091,1737771032998,-200.0,0.00019397,2]
[350289093,1737771033007,-225.12870146,0.00019417,2]
[350289106,1737771033191,-223.7037544,0.00019446,2]
[350289107,1737771033201,-200.0,0.00019449,2]
[350289108,1737771033210,-200.0,0.00019479,2]
[350289109,1737771033220,-3457.18840678,0.00019489,2]
[350289110,1737771033230,-356.92,0.00019528,2]